fUSD/lending_fUSD_20240420
["ID","MTS","AMOUNT","RATE_DAILY","PERIOD"]
[323095402,1713651052012,-151.0,0.00020041,2]
[323095403,1713651052021,-151.0,0.00020041,2]
[323095404,1713651052031,-314.84296,0.00020041,2]
[323095405,1713651052040,-314.84296,0.00020041,2]
[323095406,1713651052050,-317.116297,0.00020041,2]
[323095407,1713651052059,-317.116297,0.00020041,2]
[323095408,1713651052069,-857.37267,0.00020041,2]
[323095409,1713651052078,-857.37267,0.00020041,2]
[323095410,1713651052087,-151.0,0.00020041,2]
[323095411,1713651052098,-255.462152,0.00020041,2]
[323095412,1713651052108,-255.462152,0.00020041,2]
[323095413,1713651052117,-238.794602,0.00020041,2]
[323095414,1713651052127,-238.794602,0.00020041,2]
[323095415,1713651052139,-541.863352,0.00020041,2]
[323095416,1713651052148,-541.863352,0.00020041,2]
[323095417,1713651052162,-191.970236,0.00020041,2]
[323095418,1713651052172,-191.970236,0.00020041,2]
[323095419,1713651052181,-173.098164,0.00020041,2]
[323095420,1713651052191,-151.0,0.00020041,2]
[323095421,1713651052201,-267.648347,0.00020041,2]
[323095422,1713651052211,-267.648347,0.00020041,2]
[323095423,1713651052223,-151.0,0.00020041,2]
[323095424,1713651052233,-238.960735,0.00020041,2]
[323095425,1713651052245,-151.0,0.00020041,2]
[323095426,1713651052255,-238.960735,0.00020041,2]
[323095427,1713651052264,-154.98058798,0.00020042,2]
[323095428,1713651052274,-18519.81669861,0.00020077,2]
[323095429,1713651052283,-151.0,0.00020077,2]
[323095430,1713651052293,-151.0,0.00020077,2]
[323095431,1713651052302,-275.684519,0.00020077,2]
[323095432,1713651052313,-275.684519,0.00020077,2]
[323095433,1713651052323,-192.189945,0.00020077,2]
[323095434,1713651052333,-192.189945,0.00020077,2]
[323095435,1713651052343,-153.179289,0.00020077,2]
[323095436,1713651052353,-153.179289,0.00020077,2]
[323095437,1713651052363,-151.0,0.00020077,2]
[323095438,1713651052373,-151.0,0.00020077,2]
[323095439,1713651052384,-151.0,0.00020077,2]
[323095440,1713651052393,-163.51174,0.00020077,2]
[323095441,1713651052403,-163.51174,0.00020077,2]
[323095442,1713651052413,-396.752378,0.00020077,2]
[323095443,1713651052423,-454.780278,0.00020077,2]
[323095444,1713651052433,-396.752378,0.00020077,2]
[323095445,1713651052443,-454.780278,0.00020077,2]
[323095446,1713651052453,-864.727241,0.00020077,2]
[323095447,1713651052462,-864.727241,0.00020077,2]
[323095448,1713651052475,-216.13390304,0.00020086,2]
[323095449,1713651052486,-2150.58565061,0.00020102,2]
[323095450,1713651052496,-151.0,0.00020111,2]
[323095451,1713651052507,-213.0,0.00020112,2]
[323095452,1713651052516,-430.6083993,0.00020114,2]
[323095453,1713651052526,-153.42538043,0.00020178,2]
[323095454,1713651052536,-163.18208289,0.00020193,2]
[323095455,1713651052547,-155.16475182,0.00020199,2]
[323095456,1713651052558,-163.18208289,0.00020208,2]
[323095457,1713651052568,-2667.24,0.00020211,2]
[323095458,1713651052577,-1001.87,0.00020211,2]
[323095459,1713651052587,-3837.0,0.00020211,2]
[323095460,1713651052597,-3428.88,0.00020211,2]
[323095461,1713651052607,-153.51544218,0.00020217,2]
[323095462,1713651052617,-152.0,0.00020235,3]
[323095463,1713651052626,-151.14144813,0.0002024,2]
[323095464,1713651052636,-13251.65207594,0.00020267,2]
[323095465,1713651052646,-154.22655183,0.00020269,2]
[323095466,1713651052656,-6619.53590939,0.000203,2]
[323095467,1713651052665,-989.17572522,0.000203,2]
[323095468,1713651052679,-13.80427478,0.000203,2]
[323095469,1713651052689,-154.98944833,0.00020306,2]
[323095470,1713651052698,-153.35275824,0.00020318,2]
[323095471,1713651052708,-126.87831278,0.0002034,2]
[323095472,1713651052720,-175.48168722,0.0002034,2]
[323095473,1713651052730,-960.80160718,0.00020355,2]
[323095474,1713651052742,-2312.60774233,0.00020355,2]
[323095475,1713651052753,-3346.12655984,0.00020355,2]
[323095476,1713651052763,-151.0,0.00020355,2]
[323095477,1713651052773,-152.356357,0.00020355,2]
[323095478,1713651052782,-248.647369,0.00020355,2]
[323095479,1713651052792,-152.356357,0.00020355,2]
[323095480,1713651052802,-156.12497097,0.00020357,2]
[323095481,1713651052811,-153.51544218,0.00020374,2]
[323095482,1713651052820,-152.8181268,0.0002038,2]
[323095483,1713651052830,-153.42538043,0.00020383,2]
[323095484,1713651052839,-1009.0,0.000204,2]
[323095485,1713651052848,-577.1500482,0.000204,2]
[323095486,1713651052858,-151.0,0.00020409,2]
[323095487,1713651052867,-151.0,0.00020409,2]
[323095488,1713651052876,-151.0,0.00020409,2]
[323095489,1713651052885,-162.308791,0.00020409,2]
[323095490,1713651052894,-1163.985691,0.00020409,2]
[323095491,1713651052903,-162.308791,0.00020409,2]
[323095492,1713651052913,-1163.985691,0.00020409,2]
[323095493,1713651052922,-449.258452,0.00020409,2]
[323095494,1713651052932,-151.0,0.00020409,2]
[323095495,1713651052941,-449.258452,0.00020409,2]
[323095496,1713651052950,-151.0,0.00020409,2]
[323095497,1713651052960,-6619.53590935,0.00020409,2]
[323095498,1713651052969,-151.0,0.00020415,2]
[323095499,1713651052981,-275.684519,0.00020415,2]
[323095500,1713651052990,-275.684519,0.00020415,2]
[323095501,1713651052999,-192.189945,0.00020415,2]
[323095502,1713651053009,-192.189945,0.00020415,2]
[323095503,1713651053018,-153.179289,0.00020415,2]
[323095504,1713651053028,-153.179289,0.00020415,2]
[323095505,1713651053037,-151.0,0.00020415,2]
[323095506,1713651053047,-151.0,0.00020415,2]
[323095507,1713651053056,-151.0,0.00020415,2]
[323095508,1713651053066,-163.51174,0.00020415,2]
[323095509,1713651053075,-163.51174,0.00020415,2]
[323095510,1713651053084,-151.0,0.00020415,2]
[323095511,1713651053094,-151.0,0.00020415,2]
[323095512,1713651053103,-329.967161,0.00020415,2]
[323095513,1713651053113,-329.967161,0.00020415,2]
[323095514,1713651053122,-664.005963,0.00020415,2]
[323095515,1713651053132,-181.184666,0.00020415,2]
[323095516,1713651053141,-664.005963,0.00020415,2]
[323095517,1713651053150,-181.184666,0.00020415,2]
[323095518,1713651053159,-151.0,0.00020415,2]
[323095519,1713651053169,-152.8181268,0.00020425,2]
[323095520,1713651053178,-6619.53590935,0.00020464,2]
[323095521,1713651053187,-151.0,0.00020464,2]
[323095522,1713651053197,-255.462152,0.00020464,2]
[323095523,1713651053207,-255.462152,0.00020464,2]
[323095524,1713651053217,-238.794602,0.00020464,2]
[323095525,1713651053229,-238.794602,0.00020464,2]
[323095526,1713651053239,-541.863352,0.00020464,2]
[323095527,1713651053248,-541.863352,0.00020464,2]
[323095528,1713651053257,-191.970236,0.00020464,2]
[323095529,1713651053267,-191.970236,0.00020464,2]
[323095530,1713651053277,-151.0,0.00020464,2]
[323095531,1713651053286,-267.648347,0.00020464,2]
[323095532,1713651053295,-267.648347,0.00020464,2]
[323095533,1713651053305,-151.0,0.00020464,2]
[323095534,1713651053314,-238.960735,0.00020464,2]
[323095535,1713651053323,-151.0,0.00020464,2]
[323095536,1713651053333,-238.960735,0.00020464,2]
[323095537,1713651053342,-715.910514,0.00020464,2]
[323095538,1713651053351,-151.0,0.00020464,2]
[323095539,1713651053361,-715.910514,0.00020464,2]
[323095540,1713651053370,-380.422175,0.00020464,2]
[323095541,1713651053380,-380.422175,0.00020464,2]
[323095542,1713651053389,-730.741689,0.00020464,2]
[323095543,1713651053398,-151.0,0.00020464,2]
[323095544,1713651053407,-730.741689,0.00020464,2]
[323095545,1713651053416,-278.659762,0.00020464,2]
[323095546,1713651053426,-151.0,0.00020464,2]
[323095547,1713651053435,-278.659762,0.00020464,2]
[323095548,1713651053445,-187.654272,0.00020464,2]
[323095549,1713651053455,-187.654272,0.00020464,2]
[323095550,1713651053465,-2667.24,0.00020485,2]
[323095551,1713651053477,-1001.87,0.00020485,2]
[323095552,1713651053487,-3837.0,0.00020485,2]
[323095553,1713651053497,-151.0,0.00020485,2]
[323095554,1713651053507,-151.0,0.00020485,2]
[323095555,1713651053517,-151.0,0.00020485,2]
[323095556,1713651053526,-3428.88,0.00020485,2]
[323095557,1713651053536,-1925.930516,0.00020485,2]
[323095558,1713651053547,-1925.930516,0.00020485,2]
[323095559,1713651053558,-5346.409224,0.00020485,2]
[323095560,1713651053567,-5346.409224,0.00020485,2]
[323095561,1713651053577,-234.545228,0.00020485,2]
[323095562,1713651053587,-234.545228,0.00020485,2]
[323095563,1713651053597,-151.0,0.00020485,2]
[323095564,1713651053606,-151.0,0.00020485,2]
[323095565,1713651053616,-151.0,0.00020485,2]
[323095566,1713651053625,-151.0,0.00020485,2]
[323095567,1713651053635,-151.0,0.00020485,2]
[323095568,1713651053644,-335.275474,0.00020485,2]
[323095569,1713651053653,-335.275474,0.00020485,2]
[323095570,1713651053663,-150.0,0.000205,2]
[323095571,1713651053672,-150.0,0.000205,2]
[323095572,1713651053682,-577.1500482,0.000205,2]
[323095573,1713651053691,-1500.0,0.000205,2]
[323095574,1713651053700,-1002.063549,0.000205,2]
[323095575,1713651053710,-893.03614,0.000205,2]
[323095576,1713651053719,-154.98944833,0.00020502,2]
[323095577,1713651053730,-154.22655183,0.00020513,2]
[323095578,1713651053740,-154.98944833,0.00020514,2]
[323095579,1713651053750,-396.752378,0.00020518,2]
[323095580,1713651053759,-454.780278,0.00020518,2]
[323095581,1713651053769,-396.752378,0.00020518,2]
[323095582,1713651053778,-454.780278,0.00020518,2]
[323095583,1713651053787,-864.727241,0.00020518,2]
[323095584,1713651053797,-864.727241,0.00020518,2]
[323095585,1713651053806,-151.0,0.00020518,2]
[323095586,1713651053815,-151.0,0.00020518,2]
[323095587,1713651053824,-314.84296,0.00020518,2]
[323095588,1713651053833,-314.84296,0.00020518,2]
[323095589,1713651053842,-317.116297,0.00020518,2]
[323095590,1713651053851,-317.116297,0.00020518,2]
[323095591,1713651053860,-857.37267,0.00020518,2]
[323095592,1713651053870,-857.37267,0.00020518,2]
[323095593,1713651053879,-6619.53590935,0.00020518,2]
[323095594,1713651053888,-430.6083993,0.00020551,2]
[323095595,1713651053897,-6619.53590935,0.00020573,2]
[323095596,1713651053906,-156.74680898,0.00020598,2]
[323095597,1713651053915,-155.16475182,0.00020613,2]
[323095598,1713651053924,-6619.53590935,0.00020627,2]
[323095599,1713651053934,-574.15002303,0.00020634,2]
[323095600,1713651053943,-151.58369729,0.00020644,2]
[323095601,1713651053953,-6619.53590935,0.00020682,2]
[323095602,1713651053962,-154.31998399,0.00020695,2]
[323095603,1713651053971,-574.15002303,0.00020714,2]
[323095604,1713651053980,-430.6083993,0.00020719,2]
[323095605,1713651053989,-6619.53590935,0.00020736,2]
[323095606,1713651053998,-2667.24,0.00020759,2]
[323095607,1713651054007,-1001.87,0.00020759,2]
[323095608,1713651054017,-3837.0,0.00020759,2]
[323095609,1713651054027,-3428.88,0.00020759,2]
[323095610,1713651054036,-577.1500482,0.00020777,2]
[323095611,1713651054045,-275.684519,0.00020779,2]
[323095612,1713651054054,-275.684519,0.00020779,2]
[323095613,1713651054064,-6619.53590935,0.00020791,2]
[323095614,1713651054073,-52425.30561709,0.000208,2]
[323095615,1713651054082,-151.0,0.000208,2]
[323095616,1713651054091,-151.0,0.000208,2]
[323095617,1713651054264,-979.82244926,0.000208,2]
[323095618,1713651054274,-164.711211,0.000208,2]
[323095619,1713651054283,-192.189945,0.000208,2]
[323095620,1713651054293,-192.189945,0.000208,2]
[323095621,1713651054301,-153.179289,0.000208,2]
[323095622,1713651054311,-153.179289,0.000208,2]
[323095623,1713651054320,-206.140692,0.000208,2]
[323095624,1713651054329,-151.0,0.000208,2]
[323095625,1713651054338,-151.0,0.000208,2]
[323095626,1713651054347,-163.51174,0.000208,2]
[323095627,1713651054357,-163.51174,0.000208,2]
[323095628,1713651054367,-151.0,0.000208,2]
[323095629,1713651054377,-255.462152,0.000208,2]
[323095630,1713651054386,-255.462152,0.000208,2]
[323095631,1713651054395,-238.794602,0.000208,2]
[323095632,1713651054405,-238.794602,0.000208,2]
[323095633,1713651054415,-541.863352,0.000208,2]
[323095634,1713651054424,-541.863352,0.000208,2]
[323095635,1713651054433,-151.0,0.000208,2]
[323095636,1713651054443,-152.356357,0.000208,2]
[323095637,1713651054452,-191.970236,0.000208,2]
[323095638,1713651054462,-152.356351,0.000208,2]
[323095639,1713651054474,-191.970236,0.000208,2]
[323095640,1713651054483,-176.975496,0.000208,2]
[323095641,1713651054492,-162.308791,0.000208,2]
[323095642,1713651054501,-1163.985691,0.000208,2]
[323095643,1713651054511,-162.308787,0.000208,2]
[323095644,1713651054520,-1163.985691,0.000208,2]
[323095645,1713651054530,-449.258452,0.000208,2]
[323095646,1713651054540,-169.833888,0.000208,2]
[323095647,1713651054550,-449.258458,0.000208,2]
[323095648,1713651054561,-151.0,0.000208,2]
[323095649,1713651054570,-151.0,0.000208,2]
[323095650,1713651054580,-267.648347,0.000208,2]
[323095651,1713651054589,-267.648343,0.000208,2]
[323095652,1713651054598,-151.0,0.000208,2]
[323095653,1713651054608,-238.960735,0.000208,2]
[323095654,1713651054617,-151.0,0.000208,2]
[323095655,1713651054626,-238.960739,0.000208,2]
[323095656,1713651054637,-715.910514,0.000208,2]
[323095657,1713651054646,-151.0,0.000208,2]
[323095658,1713651054655,-715.910514,0.000208,2]
[323095659,1713651054665,-380.422175,0.000208,2]
[323095660,1713651054674,-380.422175,0.000208,2]
[323095661,1713651054684,-730.741689,0.000208,2]
[323095662,1713651054694,-151.0,0.000208,2]
[323095663,1713651054703,-730.741689,0.000208,2]
[323095664,1713651054713,-278.659762,0.000208,2]
[323095665,1713651054723,-151.0,0.000208,2]
[323095666,1713651054732,-278.659762,0.000208,2]
[323095667,1713651054741,-187.654272,0.000208,2]
[323095668,1713651054751,-187.654272,0.000208,2]
[323095669,1713651054760,-151.0,0.000208,2]
[323095670,1713651054770,-151.0,0.000208,2]
[323095671,1713651054779,-329.967161,0.000208,2]
[323095672,1713651054789,-329.967161,0.000208,2]
[323095673,1713651054798,-664.005963,0.000208,2]
[323095674,1713651054808,-181.184666,0.000208,2]
[323095675,1713651054817,-664.005963,0.000208,2]
[323095676,1713651054827,-181.184666,0.000208,2]
[323095677,1713651054837,-264.486982,0.000208,2]
[323095678,1713651054847,-151.0,0.000208,2]
[323095679,1713651054856,-151.0,0.000208,2]
[323095680,1713651054866,-152.150407,0.000208,2]
[323095681,1713651054875,-1925.930516,0.000208,2]
[323095682,1713651054884,-1925.930516,0.000208,2]
[323095683,1713651054893,-5346.409224,0.000208,2]
[323095684,1713651054903,-5346.409224,0.000208,2]
[323095685,1713651054912,-234.545228,0.000208,2]
[323095686,1713651054921,-234.545228,0.000208,2]
[323095687,1713651054930,-151.0,0.000208,2]
[323095688,1713651054940,-151.0,0.000208,2]
[323095689,1713651054949,-151.0,0.000208,2]
[323095690,1713651054959,-151.0,0.000208,2]
[323095691,1713651054969,-151.0,0.000208,2]
[323095692,1713651054980,-335.275474,0.000208,2]
[323095693,1713651054989,-335.275474,0.000208,2]
[323095694,1713651054998,-2000.0,0.00020821,2]
[323095695,1713651055008,-151.0,0.00020821,2]
[323095696,1713651055017,-167.024315,0.00020821,2]
[323095697,1713651055027,-314.84296,0.00020821,2]
[323095698,1713651055036,-314.84296,0.00020821,2]
[323095699,1713651055046,-317.116297,0.00020821,2]
[323095700,1713651055055,-317.116297,0.00020821,2]
[323095701,1713651055065,-857.37267,0.00020821,2]
[323095702,1713651055074,-857.37267,0.00020821,2]
[323095703,1713651055084,-626.56851657,0.00020827,2]
[323095704,1713651055093,-150.0,0.00020829,2]
[323095705,1713651055103,-2150.58565061,0.00020844,2]
[323095706,1713651055112,-6619.53590935,0.00020845,2]
[323095707,1713651055122,-577.1500482,0.00020853,2]
[323095708,1713651055132,-396.752378,0.00020863,2]
[323095709,1713651055141,-454.780278,0.00020863,2]
[323095710,1713651055150,-396.752378,0.00020863,2]
[323095711,1713651055159,-454.780278,0.00020863,2]
[323095712,1713651055169,-864.727241,0.00020863,2]
[323095713,1713651055178,-864.727241,0.00020863,2]
[323095714,1713651055187,-626.56851657,0.0002087,2]
[323095715,1713651055197,-157.6,0.00020874,2]
[323095716,1713651055209,-574.15002303,0.00020875,2]
[323095717,1713651055219,-152.8181268,0.00020895,2]
[323095718,1713651055231,-1902.22,0.000209,2]
[323095719,1713651055241,-6619.53590935,0.000209,2]
[323095720,1713651055251,-216.13390304,0.000209,2]
[323095721,1713651055261,-171.62168246,0.000209,2]
[323095722,1713651055272,-275.684519,0.000209,2]
[323095723,1713651055282,-275.684519,0.000209,2]
[323095724,1713651055292,-13251.65207594,0.000209,2]
[323095725,1713651055303,-4100.86799248,0.000209,2]
[323095726,1713651055314,-5983.85250359,0.000209,2]
[323095727,1713651055323,-3372.71894168,0.000209,2]
[323095728,1713651055332,-151.58369729,0.00020919,2]
[323095729,1713651055342,-2150.58565061,0.00020921,2]
[323095730,1713651055351,-3074.84450973,0.00020936,2]
[323095731,1713651055361,-798.10532475,0.00020936,2]
[323095732,1713651055371,-797.31259506,0.00020936,2]
[323095733,1713651055381,-151.0,0.00020936,2]
[323095734,1713651055391,-155.94518818,0.00020938,2]
[323095735,1713651055401,-154.22655183,0.00020947,2]
[323095736,1713651055413,-1181.96152628,0.0002098,3]
[323095737,1713651055424,-151.0,0.00020986,2]
[323095738,1713651055434,-192.189945,0.00020986,2]
[323095739,1713651055443,-192.189953,0.00020986,2]
[323095740,1713651055454,-153.179289,0.00020986,2]
[323095741,1713651055466,-153.179289,0.00020986,2]
[323095742,1713651055476,-151.0,0.00020986,2]
[323095743,1713651055486,-151.0,0.00020986,2]
[323095744,1713651055495,-163.51174,0.00020986,2]
[323095745,1713651055504,-163.51174,0.00020986,2]
[323095746,1713651055514,-396.752378,0.00020986,2]
[323095747,1713651055524,-454.780278,0.00020986,2]
[323095748,1713651055535,-396.752378,0.00020986,2]
[323095749,1713651055544,-454.780278,0.00020986,2]
[323095750,1713651055553,-864.727241,0.00020986,2]
[323095751,1713651055563,-864.727241,0.00020986,2]
[323095752,1713651055572,-151.0,0.00020986,2]
[323095753,1713651055582,-314.84296,0.00020986,2]
[323095754,1713651055591,-314.84296,0.00020986,2]
[323095755,1713651055600,-317.116297,0.00020986,2]
[323095756,1713651055610,-317.116297,0.00020986,2]
[323095757,1713651055619,-857.37267,0.00020986,2]
[323095758,1713651055628,-857.37267,0.00020986,2]
[323095759,1713651055638,-151.0,0.00020986,2]
[323095760,1713651055647,-255.462152,0.00020986,2]
[323095761,1713651055656,-255.462161,0.00020986,2]
[323095762,1713651055666,-238.794602,0.00020986,2]
[323095763,1713651055675,-238.794608,0.00020986,2]
[323095764,1713651055685,-541.863352,0.00020986,2]
[323095765,1713651055695,-541.863347,0.00020986,2]
[323095766,1713651055704,-191.970236,0.00020986,2]
[323095767,1713651055714,-191.970226,0.00020986,2]
[323095768,1713651055725,-23843.0267978,0.00020986,2]
[323095769,1713651055734,-20286.4876208,0.00020986,2]
[323095770,1713651055744,-16729.9484437,0.00020986,2]
[323095771,1713651055754,-13173.4092666,0.00020986,2]
[323095772,1713651055763,-9616.8700895,0.00020986,2]
[323095773,1713651055773,-715.910514,0.00020986,2]
[323095774,1713651055782,-151.0,0.00020986,2]
[323095775,1713651055792,-715.910507,0.00020986,2]
[323095776,1713651055801,-380.422175,0.00020986,2]
[323095777,1713651055810,-380.422167,0.00020986,2]
[323095778,1713651055820,-1547.6792564,0.00020986,2]
[323095779,1713651055829,-1313.9950122,0.00020986,2]
[323095780,1713651055838,-1080.3107681,0.00020986,2]
[323095781,1713651055847,-846.6265239,0.00020986,2]
[323095782,1713651055856,-612.9422797,0.00020986,2]
[323095783,1713651055866,-730.741689,0.00020986,2]
[323095784,1713651055876,-151.0,0.00020986,2]
[323095785,1713651055885,-730.741693,0.00020986,2]
[323095786,1713651055894,-278.659762,0.00020986,2]
[323095787,1713651055903,-2150.58565061,0.00020986,2]
[323095788,1713651055912,-278.659762,0.00020986,2]
[323095789,1713651055921,-187.654272,0.00020986,2]
[323095790,1713651055931,-187.65428,0.00020986,2]
[323095791,1713651055940,-151.0,0.00020986,2]
[323095792,1713651055949,-151.0,0.00020986,2]
[323095793,1713651055958,-329.967161,0.00020986,2]
[323095794,1713651055968,-329.967165,0.00020986,2]
[323095795,1713651055978,-664.005963,0.00020986,2]
[323095796,1713651055987,-181.184666,0.00020986,2]
[323095797,1713651055996,-664.005967,0.00020986,2]
[323095798,1713651056005,-181.184667,0.00020986,2]
[323095799,1713651056015,-151.0,0.00020986,2]
[323095800,1713651056024,-151.0,0.00020986,2]
[323095801,1713651056033,-1925.930516,0.00020986,2]
[323095802,1713651056042,-1925.930516,0.00020986,2]
[323095803,1713651056051,-5346.409224,0.00020986,2]
[323095804,1713651056061,-5346.409224,0.00020986,2]
[323095805,1713651056070,-234.545228,0.00020986,2]
[323095806,1713651056080,-234.545228,0.00020986,2]
[323095807,1713651056089,-151.0,0.00020986,2]
[323095808,1713651056098,-177.023489,0.00020986,2]
[323095809,1713651056107,-151.0,0.00020986,2]
[323095810,1713651056116,-151.0,0.00020986,2]
[323095811,1713651056126,-151.0,0.00020986,2]
[323095812,1713651056135,-335.275474,0.00020986,2]
[323095813,1713651056144,-2295.9906392,0.00020991,2]
[323095814,1713651056153,-157.042106,0.00020995,2]
[323095815,1713651056162,-157.042106,0.00020995,2]
[323095816,1713651056171,-157.042106,0.00020995,2]
[323095817,1713651056180,-157.042106,0.00020995,2]
[323095818,1713651056189,-157.042106,0.00020995,2]
[323095819,1713651056198,-157.042106,0.00020995,2]
[323095820,1713651056208,-157.042106,0.00020995,2]
[323095821,1713651056217,-157.042106,0.00020995,2]
[323095822,1713651056227,-157.042106,0.00020995,2]
[323095823,1713651056236,-157.042106,0.00020995,2]
[323095824,1713651056245,-157.042106,0.00020995,2]
[323095825,1713651056254,-157.042106,0.00020995,2]
[323095826,1713651056264,-157.042106,0.00020995,2]
[323095827,1713651056273,-157.042106,0.00020995,2]
[323095828,1713651056282,-275.684519,0.00020995,2]
[323095829,1713651056291,-275.684525,0.00020995,2]
[323095830,1713651056300,-628.042106,0.00020996,2]
[323095831,1713651056309,-628.042106,0.00020996,2]
[323095832,1713651056318,-628.042106,0.00020996,2]
[323095833,1713651056327,-628.042106,0.00020996,2]
[323095834,1713651056337,-157.042106,0.00020996,2]
[323095835,1713651056346,-571.042106,0.00020996,2]
[323095836,1713651056355,-268.3621758,0.00020997,2]
[323095837,1713651056365,-628.042106,0.00020997,2]
[323095838,1713651056374,-628.042106,0.00020997,2]
[323095839,1713651056383,-628.042106,0.00020997,2]
[323095840,1713651056392,-628.042106,0.00020997,2]
[323095841,1713651056401,-628.042106,0.00020997,2]
[323095842,1713651056411,-628.042106,0.00020997,2]
[323095843,1713651056421,-4521.29310008,0.00020998,2]
[323095844,1713651056430,-360.021665,0.00020998,2]
[323095845,1713651056440,-201.59306494,0.00020998,2]
[323095846,1713651056449,-628.042106,0.00020998,2]
[323095847,1713651056459,-628.042106,0.00020998,2]
[323095848,1713651056471,-628.042106,0.00020998,2]
[323095849,1713651056481,-628.042106,0.00020998,2]
[323095850,1713651056491,-628.042106,0.00020998,2]
[323095851,1713651056499,-628.042106,0.00020998,2]
[323095852,1713651056509,-2370.18805296,0.00021,3]
[323095853,1713651056519,-25444.10142723,0.00021,2]
[323095854,1713651056535,-590.82,0.00021,2]
[323095855,1713651195589,10791.64473838,0.000273,120]
[323095856,1713651195628,500.0,0.000273,120]
[323095857,1713651195655,22000.53215999,0.000273,120]
[323095884,1713652231773,-1250.0,0.00014,2]
[323095885,1713652231783,-156.67498363,0.00014473,2]
[323095886,1713652231793,-494.39,0.00014573,2]
[323095887,1713652231802,-367.8103,0.000154,2]
[323095888,1713652231812,-1689.1122,0.000154,2]
[323095889,1713652231823,-162.07,0.0001549,2]
[323095890,1713652231833,-170.51080146,0.0001549,2]
[323095891,1713652231843,-1163.25,0.00015499,2]
[323095892,1713652231852,-500.0,0.00015499,2]
[323095893,1713652231862,-500.0,0.00015499,2]
[323095894,1713652232082,-500.0,0.00015499,2]
[323095895,1713652232092,-500.0,0.00015499,2]
[323095896,1713652232101,-500.0,0.00015499,2]
[323095897,1713652232111,-500.0,0.00015499,2]
[323095898,1713652232120,-500.0,0.00015499,2]
[323095899,1713652232130,-500.0,0.00015499,2]
[323095900,1713652232139,-500.0,0.00015499,2]
[323095901,1713652232148,-500.0,0.00015499,2]
[323095902,1713652232157,-668.56,0.00015499,2]
[323095903,1713652232167,-500.0,0.00015499,2]
[323095904,1713652232176,-500.0,0.00015499,2]
[323095905,1713652232186,-500.0,0.00015499,2]
[323095906,1713652232195,-500.0,0.00015499,2]
[323095907,1713652232205,-837.11,0.00015499,2]
[323095908,1713652232214,-500.09375376,0.00015499,2]
[323095909,1713652232223,-500.0,0.00015499,2]
[323095910,1713652232233,-500.0,0.00015499,2]
[323095911,1713652232242,-500.0,0.00015499,2]
[323095912,1713652232251,-854.62,0.00015499,2]
[323095913,1713652232261,-500.0,0.00015499,2]
[323095914,1713652232271,-510.61,0.00015499,2]
[323095915,1713652232280,-500.0,0.00015499,2]
[323095916,1713652232289,-500.0,0.00015499,2]
[323095917,1713652232299,-3443.68746115,0.000155,2]
[323095918,1713652232357,-2492.08908691,0.000155,2]
[323095919,1713652232380,-295.22798148,0.000155,2]
[323095928,1713652237420,-1017.28746823,0.000154,2]
[323095929,1713652237582,-2002.0899956,0.000154,2]
[323095930,1713652237596,-2003.237718,0.000154,2]
[323095931,1713652237608,-2477.38481817,0.000154,2]
[323095932,1713652237619,-1114.78,0.00015499,2]
[323095933,1713652237629,-6422.39325565,0.000155,2]
[323095934,1713652237643,-5208.92676619,0.000155,2]
[323095935,1713652237655,-392.8525,0.000155,2]